bitfinex/quotes_BTCUSD_20260110
["timestamp","ask_amount","ask_price","bid_price","bid_amount"]
[1768075194994,0.04414985,90628.0,90615.0,0.0110357]
[1768075195404,0.01103411,90628.0,90615.0,0.0110357]
[1768075195976,0.03311574,90627.0,90615.0,0.0110357]
[1768075196111,0.03311574,90627.0,90616.0,0.01103557]
[1768075196616,0.03311574,90627.0,90616.0,0.05737323]
[1768075197463,0.03311574,90627.0,90617.0,0.01103545]
[1768075197771,0.03311574,90627.0,90616.0,0.04633766]
[1768075199417,0.03311574,90627.0,90617.0,0.01103545]
[1768075200315,0.03311574,90627.0,90616.0,0.04633766]
[1768075200519,0.03311574,90627.0,90617.0,0.01103545]
[1768075201066,0.03311574,90627.0,90618.0,0.01103533]
[1768075201265,0.03311574,90627.0,90617.0,0.01103545]
[1768075201834,0.03311574,90627.0,90618.0,0.01103533]
[1768075202069,0.03311574,90627.0,90617.0,0.01103545]
[1768075202391,0.03311574,90627.0,90618.0,0.01103533]
[1768075202590,0.03311574,90627.0,90617.0,0.01103545]
[1768075203017,0.03311574,90627.0,90618.0,0.01103533]
[1768075203576,0.03311574,90627.0,90617.0,0.01103545]
[1768075203874,0.04777257,90626.0,90616.0,0.01103557]
[1768075204086,0.04777257,90626.0,90617.0,0.01103545]
[1768075204223,0.04777257,90626.0,90616.0,0.01103557]
[1768075204425,0.04777257,90626.0,90617.0,0.01103545]
[1768075205051,0.04777257,90625.0,90617.0,0.01103545]
[1768075205486,0.04777257,90625.0,90616.0,0.01103557]
[1768075205693,0.04777257,90625.0,90617.0,0.01103545]
[1768075205897,0.04777257,90625.0,90618.0,0.01103533]
[1768075207029,0.02,90629.0,90618.0,0.01103533]
[1768075207231,0.02,90629.0,90620.0,0.06621046]
[1768075207433,0.05311409,90629.0,90620.0,0.06621046]
[1768075207634,0.02,90629.0,90621.0,0.01103496]
[1768075208009,0.06777257,90629.0,90623.0,0.01103472]
[1768075208215,0.06777257,90629.0,90621.0,0.0662098]
[1768075208532,0.04777257,90628.0,90621.0,0.01103496]
[1768075209063,0.02,90629.0,90621.0,0.01103496]
[1768075209368,0.02,90629.0,90622.0,0.01103484]
[1768075209796,0.02,90629.0,90621.0,0.01103496]
[1768075210785,0.02,90629.0,90622.0,0.01103484]
[1768075211463,0.02,90629.0,90621.0,0.01103496]
[1768075211690,0.02,90629.0,90622.0,0.01103484]
[1768075211908,0.02,90629.0,90621.0,0.01103496]
[1768075212286,0.02,90629.0,90622.0,0.01103484]
[1768075212501,0.02,90629.0,90621.0,0.01103496]
[1768075213029,0.01103521,90628.0,90621.0,0.01103496]
[1768075213786,0.01103521,90628.0,90620.0,0.01103509]
[1768075214164,0.01103521,90628.0,90621.0,0.01103496]
[1768075214363,0.01103521,90628.0,90620.0,0.01103509]
[1768075214786,0.01103521,90628.0,90621.0,0.01103496]
[1768075216330,0.01103521,90628.0,90622.0,0.01103484]
[1768075217067,0.01103521,90628.0,90621.0,0.01103496]
[1768075222188,0.01103521,90628.0,90620.0,0.01103509]
[1768075222600,0.01103521,90628.0,90621.0,0.01103496]
[1768075223303,0.01103521,90628.0,90622.0,0.01103484]
[1768075223529,0.01103521,90628.0,90621.0,0.01103496]
[1768075224220,0.01103521,90628.0,90622.0,0.01103484]
[1768075224627,0.01103521,90628.0,90621.0,0.01103496]
[1768075224836,0.01103521,90628.0,90622.0,0.01103484]
[1768075225129,0.01103521,90628.0,90620.0,0.01103509]
[1768075225768,0.01103521,90628.0,90621.0,0.01103496]
[1768075226186,0.01103521,90628.0,90622.0,0.01103484]
[1768075226571,0.01103521,90628.0,90623.0,0.01103472]
[1768075227036,0.04777257,90628.0,90621.0,0.01103496]
[1768075227360,0.06777257,90628.0,90621.0,0.01103496]
[1768075227558,0.02,90628.0,90622.0,0.01103484]
[1768075227764,0.02,90629.0,90623.0,0.01103472]
[1768075228022,0.02,90629.0,90622.0,0.01103484]
[1768075228586,0.02,90629.0,90623.0,0.01103472]
[1768075228803,0.02,90629.0,90622.0,0.01103484]
[1768075229046,0.02,90629.0,90621.0,0.01103496]
[1768075230174,0.02,90629.0,90623.0,0.01103472]
[1768075230386,0.02,90629.0,90622.0,0.01098975]
[1768075231455,0.02,90629.0,90621.0,0.01103496]
[1768075231590,0.02,90629.0,90622.0,0.01103484]
[1768075231766,0.02,90629.0,90621.0,0.01103496]
[1768075231968,0.02,90629.0,90623.0,0.01103472]
[1768075232175,0.02,90629.0,90621.0,0.01103496]
[1768075232574,0.02,90629.0,90622.0,0.01103484]
[1768075232796,0.02,90629.0,90623.0,0.01103472]
[1768075233633,0.02,90629.0,90622.0,0.01103484]
[1768075233942,0.02,90629.0,90623.0,0.01103472]
[1768075235201,0.02,90629.0,90624.0,0.0110346]
[1768075235403,0.02,90629.0,90624.0,0.01098971]
[1768075236699,0.0199098,90629.0,90623.0,0.01103472]
[1768075237643,0.0199098,90629.0,90624.0,0.0110346]
[1768075237992,0.0199098,90629.0,90625.0,0.04914866]
[1768075238744,0.0199098,90629.0,90625.0,0.01103448]
[1768075238972,0.0199098,90629.0,90624.0,0.0110346]
[1768075239125,0.0199098,90629.0,90623.0,0.01103472]
[1768075239336,0.0199098,90629.0,90624.0,0.0110346]
[1768075239699,0.0199098,90629.0,90626.0,0.01103436]
[1768075239914,0.0199098,90629.0,90623.0,0.01103472]
[1768075240353,0.0199098,90629.0,90624.0,0.0110346]
[1768075240559,0.0199098,90629.0,90625.0,0.01103448]
[1768075240708,0.0199098,90629.0,90624.0,0.0110346]
[1768075241147,0.0199098,90629.0,90625.0,0.01103448]
[1768075241631,0.0199098,90629.0,90624.0,0.0110346]
[1768075242053,0.0199098,90629.0,90625.0,0.01103448]
[1768075242831,0.0199098,90629.0,90624.0,0.0110346]
[1768075243613,0.0199098,90629.0,90625.0,0.01103448]
[1768075243839,0.0199098,90629.0,90626.0,0.01103436]
[1768075244007,0.0199098,90629.0,90625.0,0.01103448]
[1768075245210,0.0199098,90629.0,90624.0,0.0110346]
[1768075245383,0.0199098,90629.0,90625.0,0.01103448]
[1768075246587,0.0199098,90629.0,90626.0,0.01103436]
[1768075246826,0.0199098,90629.0,90625.0,0.01103448]
[1768075248768,0.0199098,90629.0,90626.0,0.01103436]
[1768075252412,0.0199098,90629.0,90625.0,0.01103448]
[1768075252625,0.0199098,90629.0,90626.0,0.01103436]
[1768075253253,0.0199098,90629.0,90625.0,0.01103448]
[1768075253983,0.0199098,90629.0,90626.0,0.01103436]
[1768075254183,0.0199098,90629.0,90625.0,0.01103448]
[1768075255037,0.01607689,90629.0,90626.0,0.0596619]
[1768075255536,0.01607689,90629.0,90626.0,0.01103436]
[1768075256122,0.01607689,90629.0,90626.0,0.0596619]
[1768075256634,0.01607689,90629.0,90626.0,0.01103436]
[1768075261412,0.01607689,90629.0,90624.0,0.06620718]
[1768075261618,0.01607689,90629.0,90626.0,0.01103436]
[1768075261795,0.01607689,90629.0,90624.0,0.0110346]
[1768075262007,0.01607689,90629.0,90626.0,0.01103436]
[1768075263200,0.01607689,90629.0,90625.0,0.01103448]
[1768075265415,0.01607689,90629.0,90624.0,0.0110346]
[1768075265580,0.01607689,90629.0,90625.0,0.01103448]
[1768075266279,0.01607689,90629.0,90624.0,0.0110346]
[1768075266502,0.01607689,90629.0,90623.0,0.01103472]
[1768075266944,0.01607689,90629.0,90622.0,0.01103484]
[1768075267352,0.01607689,90629.0,90623.0,0.01103472]
[1768075267749,0.01607689,90629.0,90621.0,0.01103496]
[1768075267949,0.01607689,90629.0,90622.0,0.01103484]
[1768075268932,0.01607689,90629.0,90621.0,0.01103496]
[1768075269415,0.000999,90621.0,90617.0,0.01607689]
[1768075269644,0.000999,90621.0,90611.0,0.03311618]
[1768075269857,0.05649585,90623.0,90611.0,0.02208]
[1768075270267,0.04546113,90623.0,90611.0,0.02208]
[1768075270414,0.05649585,90623.0,90611.0,0.02208]
[1768075270808,0.01103484,90622.0,90611.0,0.02208]
[1768075271040,0.01103533,90618.0,90608.0,0.02208]
[1768075271217,0.01103545,90617.0,90608.0,0.02208]
[1768075271587,0.01103533,90618.0,90608.0,0.02208]
[1768075271963,0.01103557,90616.0,90608.0,0.02208]
[1768075272363,0.01103582,90614.0,90608.0,0.02208]
[1768075272574,0.0110357,90615.0,90608.0,0.02208]
[1768075272961,0.01103557,90616.0,90608.0,0.02208]
[1768075273164,0.01103545,90617.0,90608.0,0.02208]
[1768075273644,0.01103557,90616.0,90608.0,0.02208]
[1768075274486,0.01103545,90617.0,90608.0,0.02208]
[1768075275338,0.0110357,90615.0,90608.0,0.02208]
[1768075275538,0.01103557,90616.0,90608.0,0.02208]
[1768075276160,0.01103545,90617.0,90608.0,0.02208]
[1768075277223,0.01103533,90618.0,90608.0,0.02208]
[1768075278062,0.01103557,90616.0,90608.0,0.02208]
[1768075279218,0.0110357,90615.0,90608.0,0.02208]
[1768075279422,0.01103557,90616.0,90608.0,0.02208]
[1768075280941,0.0110357,90615.0,90608.0,0.02208]
[1768075281353,0.01103557,90616.0,90608.0,0.02208]
[1768075284501,0.0110357,90615.0,90608.0,0.02208]
[1768075284708,0.01103557,90616.0,90608.0,0.02208]
[1768075287902,0.02207103,90618.0,90608.0,0.02208]
[1768075288557,0.0110357,90618.0,90608.0,0.02208]
[1768075289739,0.0110357,90618.0,90608.0,0.03311655]
[1768075289911,0.0110357,90618.0,90608.0,0.02208]
[1768075293806,0.02207103,90618.0,90608.0,0.02208]
[1768075293966,0.0110357,90618.0,90608.0,0.02208]
[1768075299210,0.0110357,90618.0,90608.0,0.03311655]
[1768075299842,0.0110357,90618.0,90609.0,0.01103643]
[1768075300107,0.0110357,90618.0,90608.0,0.03311655]
[1768075301661,0.0100367,90618.0,90609.0,0.0662185]
[1768075302022,0.03311804,90620.0,90610.0,0.0110363]
[1768075302160,0.03311804,90620.0,90611.0,0.01103618]
[1768075303338,0.03311804,90620.0,90610.0,0.0110363]
[1768075303487,0.03311804,90620.0,90611.0,0.01103618]
[1768075305281,0.03311804,90620.0,90610.0,0.0110363]
[1768075306104,0.03311804,90620.0,90608.0,0.02208]
[1768075306310,0.03311804,90620.0,90608.0,0.03311655]
[1768075306429,0.03311804,90620.0,90609.0,0.01103643]
[1768075306627,0.03311804,90620.0,90608.0,0.02208]
[1768075306822,0.32565192,90620.0,90608.0,0.02208]
[1768075307385,0.33668701,90620.0,90608.0,0.02208]
[1768075307987,0.04415313,90620.0,90608.0,0.02208]
[1768075308584,0.01103521,90619.0,90608.0,0.02208]
[1768075308761,0.04415313,90620.0,90608.0,0.02208]
[1768075309283,0.01103521,90619.0,90608.0,0.02208]
[1768075309493,0.03311521,90619.0,90608.0,0.02208]
[1768075309667,0.02208,90619.0,90608.0,0.02208]
[1768075310348,0.03311521,90619.0,90608.0,0.02208]
[1768075316301,0.02208,90619.0,90608.0,0.02208]
[1768075316597,0.03311521,90619.0,90608.0,0.02208]
[1768075316964,0.02208,90619.0,90608.0,0.02208]
[1768075317815,0.03311521,90619.0,90608.0,0.02208]
[1768075324138,0.02208,90619.0,90608.0,0.02208]
[1768075324337,0.03311521,90619.0,90608.0,0.02208]
[1768075325430,0.02208,90619.0,90608.0,0.02208]
[1768075325736,0.03311521,90619.0,90608.0,0.02208]
[1768075326136,0.02208,90619.0,90608.0,0.02208]
[1768075327254,0.02208,90619.0,90608.0,0.03311655]
[1768075327502,0.02208,90619.0,90608.0,0.02208]
[1768075328305,0.04685861,90618.0,90608.0,0.03311655]
[1768075330033,0.04685861,90618.0,90609.0,0.01103643]
[1768075333286,0.04685861,90618.0,90608.0,0.03311655]
[1768075333639,0.02208,90619.0,90611.0,0.01103618]
[1768075336189,0.02208,90619.0,90610.0,0.0110363]
[1768075336392,0.02208,90619.0,90611.0,0.01103618]
[1768075337565,0.02208,90619.0,90612.0,0.01103606]
[1768075337985,0.02208,90619.0,90611.0,0.01103618]
[1768075338142,0.02208,90619.0,90610.0,0.0110363]
[1768075338307,0.02208,90619.0,90611.0,0.01103618]
[1768075338791,0.02208,90619.0,90612.0,0.01103606]
[1768075339479,0.02208,90619.0,90611.0,0.01103618]
[1768075339716,0.02208,90619.0,90612.0,0.01103606]
[1768075341211,0.02208,90619.0,90611.0,0.01103618]
[1768075341996,0.02208,90619.0,90610.0,0.06621778]
[1768075341997,0.02208,90619.0,90610.0,0.0110363]
[1768075343009,0.02208,90619.0,90609.0,0.01103643]
[1768075343789,0.01103496,90621.0,90609.0,0.0466337]
[1768075344008,0.02208,90621.0,90609.0,0.05767013]
[1768075344195,0.03311496,90621.0,90609.0,0.0466337]
[1768075344394,0.01103509,90620.0,90609.0,0.0466337]
[1768075344786,0.03311496,90621.0,90609.0,0.0466337]
[1768075344977,0.02208,90621.0,90609.0,0.0466337]
[1768075345583,0.02208,90621.0,90609.0,0.05767013]
[1768075346137,0.02208,90621.0,90610.0,0.0110363]
[1768075346550,0.02208,90621.0,90609.0,0.05767013]
[1768075347139,0.02208,90621.0,90610.0,0.0110363]
[1768075347281,0.02208,90621.0,90609.0,0.05767013]
[1768075348355,0.03311496,90621.0,90609.0,0.0466337]
[1768075348910,0.02208,90621.0,90609.0,0.05767013]
[1768075349110,0.02208,90621.0,90610.0,0.0110363]
[1768075349339,0.02208,90621.0,90609.0,0.05767013]
[1768075349513,0.02208,90621.0,90609.0,0.0466337]
[1768075349854,0.02208,90621.0,90610.0,0.0110363]
[1768075350661,0.02208,90621.0,90609.0,0.0466337]
[1768075351194,0.02208,90621.0,90609.0,0.05767013]
[1768075352687,0.02208,90621.0,90610.0,0.0110363]
[1768075352840,0.02208,90621.0,90609.0,0.05767013]
[1768075353453,0.02208,90621.0,90610.0,0.0110363]
[1768075355321,0.02208,90621.0,90609.0,0.05767013]
[1768075355656,0.02208,90621.0,90610.0,0.0110363]
[1768075358969,0.04984963,90620.0,90610.0,0.0110363]
[1768075361074,0.04984963,90620.0,90608.0,0.03311655]
[1768075361218,0.04984963,90620.0,90609.0,0.01103643]
[1768075361418,0.04984963,90620.0,90610.0,0.0110363]
[1768075362897,0.04984963,90620.0,90608.0,0.03311655]
[1768075363120,0.04984963,90620.0,90608.0,0.0882993]
[1768075363343,0.04984963,90620.0,90608.0,0.03311655]
[1768075363893,0.04984963,90620.0,90609.0,0.01103643]
[1768075364092,0.02208,90621.0,90609.0,0.01103643]
[1768075365194,0.02208,90621.0,90619.0,0.04976462]
[1768075365650,0.02208,90621.0,90618.0,0.01103533]
[1768075365651,0.02208,90628.0,90617.0,0.06080007]
[1768075366049,0.02208,90627.0,90617.0,0.06080007]
[1768075366258,0.02208,90627.0,90617.0,0.04976462]
[1768075366670,0.02208,90627.0,90617.0,0.06080007]
[1768075371723,0.02208,90627.0,90617.0,0.04976462]
[1768075373752,0.02208,90627.0,90617.0,0.06080007]
[1768075374546,0.02208,90627.0,90617.0,0.04976462]
[1768075375603,0.02208,90627.0,90616.0,0.01103557]
[1768075376658,0.02208,90627.0,90618.0,0.01103533]
[1768075377465,0.02208,90627.0,90617.0,0.01103545]
[1768075377642,0.02208,90627.0,90618.0,0.01103533]
[1768075377785,0.02208,90627.0,90617.0,0.01103545]
[1768075378004,0.02208,90627.0,90618.0,0.01103533]
[1768075381485,0.02208,90627.0,90617.0,0.01103545]
[1768075381702,0.02208,90627.0,90618.0,0.01103533]
[1768075381921,0.02208,90627.0,90617.0,0.01103545]
[1768075383945,0.02208,90627.0,90616.0,0.01103557]
[1768075384128,0.02208,90627.0,90615.0,0.0110357]
[1768075384519,0.02208,90627.0,90616.0,0.01103557]
[1768075386289,0.02208,90627.0,90617.0,0.01103545]
[1768075386806,0.02208,90627.0,90615.0,0.0110357]
[1768075387004,0.02208,90627.0,90616.0,0.01103557]
[1768075388326,0.02208,90627.0,90615.0,0.06621409]
[1768075388526,0.02208,90627.0,90616.0,0.01103557]
[1768075388826,0.02208,90627.0,90617.0,0.01103545]
[1768075389026,0.02208,90627.0,90616.0,0.01103557]
[1768075389643,0.02208,90627.0,90617.0,0.01103545]
[1768075389829,0.02208,90627.0,90616.0,0.01103557]
[1768075390030,0.02208,90627.0,90615.0,0.0110357]
[1768075390394,0.02208,90627.0,90616.0,0.01103557]
[1768075390668,0.02208,90627.0,90617.0,0.01103545]
[1768075391843,0.02208,90627.0,90618.0,0.01103533]
[1768075392241,0.02208,90627.0,90617.0,0.01103545]
[1768075393537,0.02208,90627.0,90616.0,0.01103557]
[1768075393727,0.02208,90627.0,90617.0,0.01103545]
[1768075394131,0.02208,90627.0,90616.0,0.01103557]
[1768075397343,0.02208,90627.0,90617.0,0.01103545]
[1768075397646,0.02208,90627.0,90616.0,0.01103557]
[1768075398087,0.02208,90627.0,90617.0,0.01103545]
[1768075398294,0.02208,90627.0,90616.0,0.01103557]
[1768075398807,0.02208,90627.0,90615.0,0.0110357]
[1768075399127,0.02208,90627.0,90616.0,0.01103557]
[1768075399560,0.02208,90627.0,90615.0,0.0110357]
[1768075400178,0.02208,90627.0,90617.0,0.01103545]
[1768075400396,0.02208,90627.0,90616.0,0.01103557]
[1768075400616,0.02208,90627.0,90617.0,0.01103545]
[1768075400817,0.02208,90627.0,90616.0,0.01103557]
[1768075404243,0.02208,90627.0,90617.0,0.01103545]
[1768075404591,0.02208,90627.0,90616.0,0.01103557]
[1768075406184,0.02208,90627.0,90615.0,0.0110357]
[1768075406383,0.02208,90627.0,90616.0,0.01103557]
[1768075406716,0.02208,90627.0,90615.0,0.0110357]
[1768075406944,0.07109153,90627.0,90615.0,0.0110357]
[1768075407352,0.04901153,90627.0,90616.0,0.01103557]
[1768075407510,0.03311581,90626.0,90616.0,0.01103557]
[1768075407930,0.03311581,90626.0,90615.0,0.0110357]
[1768075408145,0.03311581,90626.0,90616.0,0.01103557]
[1768075410447,0.03311581,90626.0,90615.0,0.0110357]
[1768075410702,0.03311581,90626.0,90616.0,0.01103557]
[1768075411972,0.03311581,90626.0,90615.0,0.0110357]
[1768075412179,0.03311581,90626.0,90616.0,0.01103557]
[1768075412883,0.03311581,90626.0,90617.0,0.01103545]
[1768075413209,0.03311581,90626.0,90616.0,0.01103557]
[1768075415236,0.03311581,90626.0,90617.0,0.01103545]
[1768075416243,0.03311581,90626.0,90618.0,0.01103533]
[1768075416717,0.03311581,90626.0,90617.0,0.01103545]
[1768075417384,0.03311581,90626.0,90616.0,0.01103557]
[1768075418510,0.03311581,90626.0,90617.0,0.01103545]
[1768075418921,0.03311581,90626.0,90616.0,0.01103557]
[1768075422241,0.03311581,90626.0,90615.0,0.125845]
[1768075422405,0.03311581,90626.0,90616.0,0.01103557]
[1768075423909,0.03311581,90626.0,90617.0,0.01103545]
[1768075424110,0.03311581,90626.0,90616.0,0.01103557]
[1768075424758,0.03311581,90626.0,90615.0,0.125845]
[1768075424905,0.03311581,90626.0,90617.0,0.01103545]
[1768075425286,0.03311581,90626.0,90616.0,0.01103557]
[1768075426225,0.03311581,90626.0,90615.0,0.125845]
[1768075426434,0.03311581,90626.0,90615.0,0.1148093]
[1768075429143,0.03311581,90626.0,90615.0,0.125845]
[1768075430910,0.03311581,90626.0,90615.0,0.1148093]
[1768075438557,0.03311581,90626.0,90615.0,0.125845]
[1768075440315,0.03311581,90626.0,90615.0,0.1148093]
[1768075441450,0.04415017,90626.0,90615.0,0.1148093]
[1768075441693,0.01103448,90625.0,90615.0,0.1148093]
[1768075441899,0.01103436,90626.0,90615.0,0.1148093]
[1768075442314,0.03311581,90625.0,90615.0,0.1148093]
[1768075443240,0.03311581,90625.0,90615.0,0.125845]
[1768075443639,0.03311581,90625.0,90615.0,0.1148093]
[1768075443786,0.03311581,90625.0,90615.0,0.125845]
[1768075444136,0.03311581,90625.0,90615.0,0.1148093]
[1768075444546,0.03311581,90625.0,90615.0,0.125845]
[1768075445143,0.03311581,90625.0,90615.0,0.1148093]
[1768075445350,0.03311581,90625.0,90615.0,0.125845]
[1768075446097,0.03311581,90625.0,90615.0,0.1148093]
[1768075447558,0.03311581,90625.0,90615.0,0.125845]
[1768075447719,0.03311581,90625.0,90615.0,0.1148093]
[1768075453368,0.04415029,90625.0,90615.0,0.1148093]
[1768075453948,0.01103472,90623.0,90610.0,0.0110363]
[1768075454224,0.0110346,90624.0,90611.0,0.01103618]
[1768075454435,0.04415029,90625.0,90612.0,0.01103606]
[1768075454855,0.01103436,90626.0,90613.0,0.01103594]
[1768075454984,0.01103448,90625.0,90612.0,0.01103606]
[1768075455192,0.0110363,90624.0,90613.0,0.01103594]
[1768075457378,0.0110363,90624.0,90615.0,0.1148093]
[1768075464890,0.01103448,90625.0,90615.0,0.1148093]
[1768075465603,0.02207066,90626.0,90615.0,0.1148093]
[1768075467200,0.01103448,90625.0,90615.0,0.1148093]
[1768075467808,0.02207066,90626.0,90615.0,0.1148093]
[1768075468284,0.01103448,90625.0,90615.0,0.1148093]
[1768075468784,0.02207066,90626.0,90615.0,0.1148093]
[1768075469790,0.0110363,90626.0,90615.0,0.1148093]
[1768075469930,0.02207066,90626.0,90615.0,0.1148093]
[1768075471215,0.01103448,90625.0,90615.0,0.1148093]
[1768075471437,0.02207066,90626.0,90615.0,0.1148093]
[1768075472051,0.01103448,90625.0,90615.0,0.1148093]
[1768075472376,0.02207066,90626.0,90615.0,0.1148093]
[1768075472691,0.01103448,90625.0,90615.0,0.1148093]
[1768075472943,0.02207066,90626.0,90615.0,0.1148093]
[1768075473248,0.01103448,90625.0,90615.0,0.1148093]
[1768075476645,0.02207066,90626.0,90615.0,0.1148093]
[1768075477232,0.01103448,90625.0,90615.0,0.1148093]
[1768075478386,0.02207066,90626.0,90615.0,0.1148093]
[1768075478612,0.01103448,90625.0,90615.0,0.1148093]
[1768075478812,0.02207066,90626.0,90615.0,0.1148093]
[1768075478998,0.01103448,90625.0,90615.0,0.1148093]
[1768075482959,0.02207066,90626.0,90615.0,0.1148093]
[1768075487262,0.01103448,90625.0,90615.0,0.1148093]
[1768075487481,0.02207066,90626.0,90615.0,0.1148093]
[1768075488368,0.01103448,90625.0,90615.0,0.1148093]
[1768075489406,0.02207066,90626.0,90615.0,0.1148093]
[1768075491300,0.01103448,90625.0,90615.0,0.1148093]
[1768075491480,0.02207066,90626.0,90615.0,0.1148093]
[1768075491690,0.01103448,90625.0,90615.0,0.1148093]
[1768075493231,0.0110363,90626.0,90615.0,0.1148093]
[1768075493642,0.0110363,90626.0,90615.0,0.125845]
[1768075494984,0.01607689,90629.0,90617.0,0.05744953]
[1768075495223,0.01607689,90629.0,90619.0,0.04641408]
[1768075495710,0.01607689,90629.0,90619.0,0.05744929]
[1768075496027,0.01607689,90629.0,90619.0,0.04641408]
[1768075496569,0.01607689,90629.0,90617.0,0.01103545]
[1768075497396,0.01607689,90629.0,90618.0,0.01103533]
[1768075498331,0.01607689,90629.0,90619.0,0.01103521]
[1768075500534,0.01607689,90629.0,90618.0,0.01103533]
[1768075505544,0.01607689,90629.0,90619.0,0.01103521]
[1768075505747,0.01607689,90629.0,90618.0,0.01103533]
[1768075505965,0.01607689,90629.0,90617.0,0.01103545]
[1768075506167,0.01607689,90629.0,90618.0,0.01103533]
[1768075506553,0.01607689,90629.0,90619.0,0.01103521]
[1768075507283,0.02711234,90629.0,90619.0,0.01103521]
[1768075507483,0.02711234,90629.0,90618.0,0.01103533]
[1768075507942,0.02711234,90629.0,90619.0,0.01103521]
[1768075509544,0.02711234,90629.0,90617.0,0.01103545]
[1768075509752,0.02711234,90629.0,90618.0,0.01103533]
[1768075510674,0.02711234,90629.0,90617.0,0.01103545]
[1768075510879,0.02711234,90629.0,90619.0,0.01103521]
[1768075511082,0.02711234,90629.0,90617.0,0.01103545]
[1768075511497,0.02711234,90629.0,90618.0,0.01103533]
[1768075511911,0.02711234,90629.0,90617.0,0.01103545]
[1768075512322,0.02711234,90629.0,90618.0,0.01103533]
[1768075512958,0.02711234,90629.0,90619.0,0.01103521]
[1768075514109,0.02711234,90629.0,90617.0,0.01103545]
[1768075514517,0.02711234,90629.0,90618.0,0.01103533]
[1768075515426,0.02711234,90629.0,90616.0,0.01103557]
[1768075515550,0.02711234,90629.0,90617.0,0.01103545]
[1768075517838,0.02711234,90629.0,90619.0,0.01103521]
[1768075518055,0.02711234,90629.0,90618.0,0.01103533]
[1768075519252,0.02711234,90629.0,90619.0,0.01103521]
[1768075519893,0.02711234,90629.0,90618.0,0.01103533]
[1768075524062,0.02711234,90629.0,90617.0,0.01103545]
[1768075524312,0.02711234,90629.0,90618.0,0.01103533]
[1768075525455,0.01607689,90629.0,90618.0,0.01103533]
[1768075525840,0.02711234,90628.0,90618.0,0.01103533]
[1768075527754,0.02711234,90628.0,90619.0,0.01103521]
[1768075528351,0.02711234,90628.0,90620.0,0.01103509]
[1768075528649,0.02711234,90628.0,90619.0,0.01103521]
[1768075530309,0.02711234,90628.0,90620.0,0.01103509]
[1768075531848,0.02711234,90628.0,90619.0,0.01103521]
[1768075532053,0.02711234,90628.0,90620.0,0.01103509]
[1768075532657,0.02711234,90628.0,90619.0,0.01103521]
[1768075532953,0.02711234,90628.0,90620.0,0.01103509]
[1768075533115,0.02711234,90628.0,90619.0,0.01103521]
[1768075540234,0.02711234,90628.0,90620.0,0.01103509]
[1768075540391,0.02711234,90628.0,90619.0,0.01103521]
[1768075543549,0.02711234,90628.0,90618.0,0.01103533]
[1768075543850,0.02711234,90628.0,90619.0,0.01103521]
[1768075544043,0.02711234,90628.0,90620.0,0.01103509]
[1768075544256,0.02711234,90628.0,90618.0,0.01103533]
[1768075544459,0.02711234,90628.0,90619.0,0.01103521]
[1768075544639,0.02711234,90628.0,90618.0,0.01103533]
[1768075546729,0.02711234,90628.0,90619.0,0.01103521]
[1768075549603,0.02711234,90628.0,90620.0,0.01103509]
[1768075549954,0.02711234,90628.0,90618.0,0.01103533]
[1768075553864,0.02711234,90628.0,90619.0,0.01103521]
[1768075554059,0.01607689,90629.0,90619.0,0.01103521]
[1768075555265,0.02711234,90628.0,90619.0,0.01103521]
[1768075556713,0.02711234,90628.0,90620.0,0.01103509]
[1768075557112,0.02711234,90628.0,90618.0,0.01103533]
[1768075557275,0.02711234,90628.0,90619.0,0.01103521]
[1768075557678,0.02711234,90628.0,90618.0,0.01103533]
[1768075558103,0.02711234,90628.0,90619.0,0.01103521]
[1768075558334,0.02711234,90628.0,90618.0,0.01103533]
[1768075559381,0.02711234,90628.0,90619.0,0.01103521]
[1768075561950,0.02711234,90628.0,90618.0,0.01103533]
[1768075562147,0.02711234,90628.0,90620.0,0.01103509]
[1768075562549,0.02711234,90628.0,90619.0,0.01103521]
[1768075563260,0.02711234,90628.0,90618.0,0.01103533]
[1768075563474,0.02711234,90628.0,90619.0,0.01103521]
[1768075564196,0.02711234,90628.0,90620.0,0.01103509]
[1768075565116,0.02711234,90628.0,90619.0,0.01103521]
[1768075565524,0.02711234,90628.0,90618.0,0.01103533]
[1768075565719,0.02711234,90628.0,90620.0,0.01103509]
[1768075565898,0.02711234,90628.0,90619.0,0.01103521]
[1768075566112,0.02711234,90628.0,90620.0,0.01103509]
[1768075570183,0.02711234,90628.0,90619.0,0.01103521]
[1768075570989,0.02711234,90628.0,90615.0,0.02208]
[1768075571162,0.02711234,90628.0,90617.0,0.01103545]
[1768075572380,0.02711234,90628.0,90616.0,0.01103557]
[1768075573568,0.02711234,90628.0,90617.0,0.01103545]
[1768075574206,0.03814645,90628.0,90615.0,0.0331157]
[1768075574423,0.02711234,90628.0,90616.0,0.01103557]
[1768075576630,0.02711234,90628.0,90617.0,0.01103545]
[1768075577273,0.02711234,90628.0,90616.0,0.01103557]
[1768075577512,0.03814645,90628.0,90615.0,0.0331157]
[1768075577724,0.02711234,90628.0,90616.0,0.01103557]
[1768075578098,0.02711234,90628.0,90617.0,0.01103545]
[1768075579030,0.02711234,90628.0,90616.0,0.01103557]
[1768075579577,0.02711234,90628.0,90617.0,0.01103545]
[1768075581336,0.02711234,90628.0,90616.0,0.01103557]
[1768075582379,0.02711234,90628.0,90617.0,0.01103545]
[1768075582731,0.02711234,90628.0,90616.0,0.01103557]
[1768075586257,0.02711234,90628.0,90615.0,0.0331157]
[1768075586258,0.01103411,90628.0,90615.0,0.0331157]
[1768075586801,0.02711088,90629.0,90616.0,0.01103557]
[1768075589647,0.01607689,90629.0,90617.0,0.01103545]
[1768075592069,0.02711088,90629.0,90616.0,0.01103557]
[1768075592501,0.01607689,90629.0,90617.0,0.01103545]
[1768075592612,0.02711088,90629.0,90616.0,0.01103557]
[1768075592817,0.01607689,90629.0,90618.0,0.01103533]
[1768075593017,0.01607689,90629.0,90617.0,0.01103545]
[1768075593797,0.02711088,90629.0,90616.0,0.01103557]
[1768075594323,0.01607689,90629.0,90617.0,0.01103545]
[1768075594733,0.02711088,90629.0,90616.0,0.01103557]
[1768075595034,0.01607689,90629.0,90617.0,0.01103545]
[1768075598794,0.01607689,90629.0,90618.0,0.01103533]
[1768075599218,0.01607689,90629.0,90617.0,0.01103545]
[1768075599420,0.01607689,90629.0,90618.0,0.01103533]
[1768075599616,0.01607689,90629.0,90617.0,0.01103545]
[1768075600427,0.01607689,90629.0,90616.0,0.01103557]
[1768075600628,0.01607689,90629.0,90617.0,0.01103545]
[1768075600997,0.01607689,90629.0,90618.0,0.01103533]
[1768075601399,0.01607689,90629.0,90617.0,0.01103545]
[1768075602976,0.01607689,90629.0,90616.0,0.01103557]
[1768075603398,0.02711088,90629.0,90616.0,0.01103557]
[1768075603589,0.01607689,90629.0,90616.0,0.01103557]